[Event "German Bundesliga 2023-24"]
[Site "Germany"]
[Date "2024.02.24"]
[Round "10.61"]
[White "Gumularz, Szymon"]
[Black "Schulze, Torben"]
[Result "1-0"]
[ECO "A79"]
[WhiteElo "2580"]
[BlackElo "2325"]
[Annotator "TA"]
[PlyCount "81"]
[EventDate "2023.10.20"]
[EventType "team-tourn"]
[EventCountry "GER"]
[SourceTitle "playchess.com"]
[Source "ChessBase"]
[SourceQuality "1"]
[TimeControl "40/6000+30:3000+30"]

{[%evp 24,81,55,45,55,-18,-23,-128,-136,-181,51,41,68,63,38,19,24,16,29,0,0,22,22,25,179,205,201,208,192,149,209,227,230,241,238,222,227,233,234,228,238,191,295,286,424,431,398,399,565,562,704,674,718,718,800,748,1016,993,1151,1077]} 1. d4 {[%emt 0:00:06]} Nf6 {[%emt 0:00:13]} 2. c4 {[%emt 0:00:12]} c5 {[%emt 0:00:22]} 3. d5 {[%emt 0:00:07]} e6 {[%emt 0:00:05]} 4. Nf3 {[%emt 0:00:18]} d6 {[%emt 0:00:10]} 5. Nc3 {[%emt 0:00:56]} exd5 {[%emt 0:00:03]} 6. cxd5 {[%emt 0:00:08]} g6 {[%emt 0:00:10]} 7. Nd2 {[%emt 0:00:55]} Bg7 {[%emt 0:01:35]} 8. e4 {[%emt 0:00:06]} O-O {[%emt 0:00:26]} 9. Be2 {[%emt 0:00:05]} Na6 {[%emt 0:01:51]} 10. O-O {[%emt 0:00:07]} Nc7 {[%emt 0:00:07]} 11. a4 {[%emt 0:00:09]} Re8 {[%emt 0:01:01]} 12. f3 {[%emt 0:01:02]} b6 {[%emt 0:00:28]} 13. Kh1 {[%emt 0:02:32]} Rb8 {[%emt 0:00:45]} 14. Nb5 {[%emt 0:06:43]} (14. Nc4 $14) 14... a6 $11 {[%emt 0:06:00]} 15. Na7 {[%emt 0:02:34] [#]} (15. Nxc7 $11 {keeps the balance.} Qxc7 16. Nb3) 15... Bb7 $1 $17 {[%emt 0:17:04] Black is better.} 16. Nc4 {[%emt 0:13:36][%cal Bd2c4,Bc4a5,Ba5b7,Bb7d6][%mdl 32]} b5 {[%emt 0:02:58]} (16... Nfxd5 $19 {[%cal Ob8a8] ...Ra8! would now be deadly.} 17. exd5 Nxd5) 17. Na5 $14 {[%emt 0:02:05]} Qd7 {[%emt 0:01:42][%cal Rf6d5]} 18. N7c6 {[%emt 0:02:16] White is more active.} Bxc6 {[%emt 0:01:07]} 19. dxc6 {[%emt 0:00:04]} Qe6 {[%emt 0:07:32]} 20. axb5 {[%emt 0:14:00]} axb5 {[%emt 0:07:37]} 21. Bf4 $36 {[%emt 0:00:37][%mdl 2048] White has the initiative.} Bf8 {[%emt 0:05:57]} 22. Nb7 {[%emt 0:01:38][%cal Oh2h3]} Nh5 {[%emt 0:12:17]} (22... Nfd5 $2 23. exd5 Nxd5 24. Bg3 $18 (24. Bxb5 Nxf4 25. Ra4 Qf6 $11)) 23. Bxd6 {[%emt 0:00:18]} Bxd6 {[%emt 0:00:14] Black cannot hold the game after this.} (23... Rxb7 $1 $11 24. Bxf8 Qxc6) 24. Qxd6 $18 {[%emt 0:00:20]} (24. Nxd6 $2 Red8 25. f4 (25. e5 $2 Qxe5 26. Nxf7 Kxf7 $19) 25... Rxd6 $19 (25... Qxd6 $2 26. Bxh5 Qxc6 27. Qg4 $19)) 24... Qxd6 {[%emt 0:00:41]} 25. Nxd6 {[%emt 0:00:05]} Re6 {[%emt 0:00:31]} 26. Rfd1 {[%emt 0:03:31]} Rb6 {[%emt 0:05:37]} (26... Nf4 $16 27. Bf1 (27. Ra7 Nxe2 28. Rxc7 Nd4 $18) 27... c4) 27. Ra7 {[%emt 0:06:05]} Rxc6 {[%emt 0:04:05][%cal Bb6c6,Bc6d6,Bd6d1][%mdl 32]} 28. Nxb5 {[%emt 0:00:00]} (28. Bxb5 $2 Rexd6 29. Be2 (29. Rxd6 $2 Rxd6 30. Bf1 Rd1 $19) 29... Nf4 (29... Rxd1+ $2 30. Bxd1 Rd6 31. Be2 $19) 30. Rxd6 Rxd6 $19) 28... Nxb5 {[%emt 0:00:31]} 29. Bxb5 {[%emt 0:00:00]} Red6 {[%emt 0:05:20]} 30. Rxd6 {[%emt 0:10:18]} Rxd6 {[%emt 0:00:03][%mdl 4096] Endgame. KRB-KRN} 31. g3 {[%emt 0:00:50]} Nf6 {[%emt 0:16:09]} 32. Bc4 {[%emt 0:00:47]} Nd7 {[%emt 0:02:25]} (32... Rd7 $142 33. Rxd7 Nxd7) 33. f4 {[%emt 0:00:32]} g5 {[%emt 0:01:34]} (33... Rd2 {was necessary.} 34. b3 Kf8) 34. e5 {[%emt 0:01:49]} ({Weaker is} 34. fxg5 Rd1+ 35. Kg2 Rd2+ 36. Kf1 Ne5 $18) 34... Rd1+ {[%emt 0:06:44]} 35. Kg2 {[%emt 0:00:03] [#] aiming for e6.} Rd2+ {[%emt 0:01:42]} (35... Kf8 {keeps fighting.} 36. b3 (36. fxg5 Nxe5 37. Be2 Rd2 $11) 36... Rd4) 36. Kf3 {[%emt 0:01:13] Threatens to win with e6. White is clearly winning.} gxf4 {[%emt 0:00:44]} 37. gxf4 {[%emt 0:00:13]} Kf8 {[%emt 0:02:17]} 38. b3 {[%emt 0:00:22]} h6 {[%emt 0:00:31][%cal Bh7h6,Bh6h5][%mdl 32]} 39. h4 {[%emt 0:00:18]} Rd4 {[%emt 0:00:37]} 40. Rb7 {[%emt 0:00:38]} h5 {[%emt 0:00:44]} 41. Ke3 {[%emt 0:50:17] Weighted Error Value: White=0.20 (precise) /Black=0.47.  Missed win:     	---       	Black=1      Mistake:       	White=2     	Black=5      Inaccurate:     	White=1     	---        OK:         	White=8     	Black=9      Best:        	White=4     	Black=1      Strong:       	---       	Black=1} 1-0

[Event "German Bundesliga 2023-24"]
[Site "Germany"]
[Date "2024.02.24"]
[Round "10.63"]
[White "Thybo, Jesper Sondergaard"]
[Black "Hampel, Felix"]
[Result "1-0"]
[ECO "E97"]
[WhiteElo "2522"]
[BlackElo "2298"]
[Annotator "TA"]
[PlyCount "71"]
[EventDate "2023.10.20"]
[EventType "team-tourn"]
[EventCountry "GER"]
[SourceTitle "playchess.com"]
[Source "ChessBase"]
[SourceQuality "1"]
[TimeControl "40/6000+30:3000+30"]

{[%evp 18,71,11,13,22,35,25,23,25,-2,0,-4,13,4,10,4,65,47,64,34,143,142,173,167,169,164,191,172,193,188,225,234,271,251,257,217,240,176,176,156,245,242,258,255,226,216,494,482,514,539,529,537,1118,1136,5373,5369]} 1. d4 {[%emt 0:00:05]} Nf6 {[%emt 0:00:06]} 2. c4 {[%emt 0:00:28]} g6 {[%emt 0:00:08]} 3. Nc3 {[%emt 0:00:40]} Bg7 {[%emt 0:00:07]} 4. e4 {[%emt 0:00:23]} d6 {[%emt 0:00:06]} 5. Be2 {[%emt 0:00:58]} O-O {[%emt 0:00:16]} 6. Nf3 {[%emt 0:00:30]} e5 {[%emt 0:00:11]} 7. O-O {[%emt 0:00:35]} Nc6 {[%emt 0:00:08]} 8. dxe5 {[%emt 0:01:28]} dxe5 {[%emt 0:00:17]} 9. Bg5 {[%emt 0:00:21]} Qxd1 {[%emt 0:02:49]} 10. Rfxd1 {[%emt 0:05:47]} h6 {[%emt 0:00:58]} 11. Be3 {[%emt 0:01:54]} b6 {[%emt 0:15:14]} 12. h3 {[%emt 0:02:22]} Bb7 {[%emt 0:03:21] White has an edge.} 13. a3 {[%emt 0:10:33] Dodges Nb4} Rad8 {[%emt 0:09:23]} 14. Bd3 {[%emt 0:02:51]} Rfe8 {[%emt 0:20:03]} 15. Nd5 {[%emt 0:03:58]} Nxd5 {[%emt 0:01:20]} 16. cxd5 {[%emt 0:00:18]} Nd4 {[%emt 0:00:28]} ({Black should try} 16... Nb8 $11) 17. Rac1 {[%emt 0:04:07]} c5 {[%emt 0:12:12]} 18. b4 {[%emt 0:03:10]} Rc8 {[%emt 0:02:29] Black is now going downhill.} ({Black should play} 18... f5 $1 $14) 19. bxc5 $16 {[%emt 0:01:19]} Rxc5 {[%emt 0:02:42]} 20. Rxc5 {[%emt 0:03:19]} bxc5 {[%emt 0:00:05]} 21. Rb1 {[%emt 0:00:57]} Re7 {[%emt 0:05:40]} 22. Nd2 {[%emt 0:01:07]} Kh7 {[%emt 0:01:42]} 23. Nb3 {[%emt 0:05:42]} Bc8 {[%emt 0:04:10]} 24. Na5 {[%emt 0:02:16] Repels Rb7} ({Much less strong is} 24. Nxc5 Rc7) 24... Bf6 {[%emt 0:04:19]} 25. Rb8 {[%emt 0:01:50]} Bd7 {[%emt 0:02:17]} 26. Bc4 {[%emt 0:09:23]} Ba4 {[%emt 0:03:14]} 27. Rc8 {[%emt 0:03:05]} Rd7 {[%emt 0:01:42]} 28. Ba6 $36 {[%emt 0:03:44][%mdl 2048] Black is under strong pressure.} Kg7 {[%emt 0:07:07]} (28... Bc2 $16 {is a better defense.}) 29. Nb7 $18 {[%emt 0:02:40]} Bb5 {[%emt 0:07:49]} 30. Nxc5 {[%emt 0:00:22]} Bxa6 {[%emt 0:00:06]} 31. Nxa6 {[%emt 0:00:06]} Rb7 $2 {[%emt 0:01:08]} (31... Rd8 {keeps fighting.} 32. Rxd8 Bxd8 33. Bxd4 exd4) 32. Nc7 {[%emt 0:04:36] [#] aiming for Ne8+. White is clearly winning.} Kh7 {[%emt 0:04:14]} 33. d6 {[%emt 0:02:12] Against Be7} Rb1+ {[%emt 0:00:34]} 34. Kh2 {[%emt 0:00:10] And now Nd5 would win.} Rd1 {[%emt 0:00:33]} 35. Nd5 {[%emt 0:00:52]} Bg5 {[%emt 0:00:22]} 36. Bxg5 {[%emt 0:01:03] Weighted Error Value: White=0.11 (very precise) /Black=0.34.  Mistake:       	---       	Black=4      Inaccurate:     	White=2     	Black=2      OK:         	White=8     	Black=8      Best:        	White=3     	---} 1-0

[Event "German Bundesliga 2023-24"]
[Site "Germany"]
[Date "2024.02.24"]
[Round "10.64"]
[White "Voege, Tobias"]
[Black "Pajeken, Jakob Leon"]
[Result "1/2-1/2"]
[ECO "E12"]
[WhiteElo "2283"]
[BlackElo "2426"]
[Annotator "TA"]
[PlyCount "53"]
[EventDate "2023.10.20"]
[EventType "team-tourn"]
[EventCountry "GER"]
[SourceTitle "playchess.com"]
[Source "ChessBase"]
[SourceQuality "1"]
[TimeControl "40/6000+30:3000+30"]

{[%evp 13,53,23,16,8,6,11,14,0,23,20,29,19,29,17,35,0,1,9,10,10,12,12,43,39,62,11,26,12,20,19,38,42,48,54,46,31,42,40,45,46,49,42]} 1. d4 {[%emt 0:00:03]} Nf6 {[%emt 0:00:05]} 2. c4 {[%emt 0:00:04]} e6 {[%emt 0:00:03]} 3. Nf3 {[%emt 0:00:06]} b6 {[%emt 0:00:02]} 4. a3 {[%emt 0:00:19]} Bb7 {[%emt 0:00:06]} 5. Bf4 {[%emt 0:00:55]} d5 {[%emt 0:00:38]} 6. cxd5 {[%emt 0:00:27]} exd5 {[%emt 0:02:08]} 7. Nc3 {[%emt 0:02:14]} Bd6 {[%emt 0:01:44]} 8. Bg5 {[%emt 0:06:01]} O-O {[%emt 0:07:26]} 9. e3 {[%emt 0:00:10]} h6 {[%emt 0:02:08]} 10. Bh4 {[%emt 0:00:22] The position is equal.} Nbd7 {[%emt 0:01:42]} 11. Bd3 {[%emt 0:01:40]} a6 {[%emt 0:02:20]} 12. O-O {[%emt 0:05:03]} Re8 {[%emt 0:02:56]} 13. Rc1 {[%emt 0:06:39]} Qe7 {[%emt 0:09:34]} 14. Bb1 {[%emt 0:09:08]} Qe6 {[%emt 0:05:39]} 15. Ba2 {[%emt 0:04:11]} Qf5 {[%emt 0:05:06]} 16. Ne2 {[%emt 0:08:27]} Ne4 {[%emt 0:06:31]} 17. Nd2 {[%emt 0:15:50]} Ndf6 {[%emt 0:16:20]} (17... Rac8 {simplifies} 18. Nxe4 Qxe4 19. Bg3 Qe7) 18. Nxe4 {[%emt 0:05:42]} Nxe4 {[%emt 0:05:56]} 19. Ng3 {[%emt 0:08:24]} (19. f3 $14 Ng5 20. Ng3) 19... Nxg3 {[%emt 0:05:47]} 20. Bxg3 {[%emt 0:00:33]} Bxg3 {[%emt 0:00:08]} 21. hxg3 {[%emt 0:00:21]} Rac8 {[%emt 0:00:29]} 22. b4 {[%emt 0:02:25] White is slightly better.} c6 {[%emt 0:01:57]} 23. Bb1 {[%emt 0:01:23]} Qg5 {[%emt 0:00:47]} 24. Rc3 {[%emt 0:03:13]} g6 {[%emt 0:01:44]} 25. Qf3 {[%emt 0:05:00]} Re6 {[%emt 0:01:44]} 26. Qf4 {[%emt 0:02:20]} Kg7 {[%emt 0:01:39]} 27. Qxg5 {[%emt 0:04:12] Weighted Error Value: White=0.08 (flawless) /Black=0.08 (flawless) .  Mistake:       	White=1     	---        Inaccurate:     	White=1     	Black=1      OK:         	White=11    	Black=6} 1/2-1/2